fUST/lending_fUST_20240701
["ID","MTS","AMOUNT","RATE_DAILY","PERIOD"]
[330789719,1719787841044,-500.0,0.00015012,2]
[330789720,1719787841058,-500.0,0.00015012,2]
[330789721,1719787841068,-500.0,0.00015012,2]
[330789722,1719787841078,-500.0,0.00015012,2]
[330789723,1719787841087,-500.0,0.00015012,2]
[330789724,1719787841096,-500.0,0.00015012,2]
[330789725,1719787841107,-500.0,0.00015012,2]
[330789726,1719787841116,-500.0,0.00015012,2]
[330789727,1719787841125,-500.0,0.00015012,2]
[330789728,1719787841137,-500.0,0.00015012,2]
[330789729,1719787841147,-6818.41,0.00015012,2]
[330789730,1719787841156,-500.0,0.00015012,2]
[330789731,1719787841165,-579.18,0.00015012,2]
[330789732,1719787841174,-500.0,0.00015012,2]
[330789733,1719787841183,-500.0,0.00015012,2]
[330789734,1719787841192,-500.0,0.00015012,2]
[330789735,1719787841202,-500.0,0.00015012,2]
[330789736,1719787841211,-500.0,0.00015012,2]
[330789737,1719787841221,-383.23,0.00015012,2]
[330789738,1719787841230,-500.0,0.00015012,2]
[330789739,1719787841239,-1325.22,0.00015012,2]
[330789740,1719787841248,-653.96,0.00015012,2]
[330789741,1719787841261,-500.0,0.00015012,2]
[330789742,1719787841270,-598.75,0.00015012,2]
[330789743,1719787841279,-500.0,0.00015012,2]
[330789744,1719787841288,-500.94982427,0.00015012,2]
[330789745,1719787841298,-415.53313475,0.00015012,2]
[330789746,1719787841307,-500.0,0.00015012,2]
[330789747,1719787841316,-500.0,0.00015012,2]
[330789748,1719787841325,-500.0,0.00015012,2]
[330789749,1719787841335,-500.0,0.00015012,2]
[330789750,1719787841344,-580.13,0.00015012,2]
[330789751,1719787841353,-500.0,0.00015012,2]
[330789752,1719787841363,-500.0,0.00015012,2]
[330789753,1719787841372,-637.64575217,0.00015012,2]
[330789754,1719787841382,-579.48305805,0.00015012,2]
[330789755,1719787841391,-500.0,0.00015012,2]
[330789756,1719787841401,-500.0,0.00015012,2]
[330789757,1719787841411,-500.0,0.00015012,2]
[330789758,1719787841420,-500.0,0.00015012,2]
[330789759,1719787841430,-500.0,0.00015012,2]
[330789760,1719787841439,-500.0,0.00015012,2]
[330789761,1719787841448,-500.0,0.00015012,2]
[330789762,1719787841457,-500.0,0.00015012,2]
[330789763,1719787841466,-500.0,0.00015012,2]
[330789764,1719787841477,-500.0,0.00015012,2]
[330789765,1719787841486,-742.9,0.00015012,2]
[330789766,1719787841495,-500.0,0.00015012,2]
[330789767,1719787841504,-500.0,0.00015012,2]
[330789768,1719787841513,-699.79,0.00015012,2]
[330789769,1719787841523,-500.0,0.00015012,2]
[330789770,1719787841532,-500.0,0.00015012,2]
[330789771,1719787841541,-603.10771606,0.00015012,2]
[330789772,1719787841550,-500.0,0.00015012,2]
[330789773,1719787841559,-500.0,0.00015012,2]
[330789774,1719787841569,-500.0,0.00015012,2]
[330789775,1719787841579,-500.0,0.00015012,2]
[330789776,1719787841588,-1182.11,0.00015012,2]
[330789777,1719787841597,-549.75,0.00015012,2]
[330789778,1719787841607,-500.0,0.00015012,2]
[330789779,1719787841618,-500.0,0.00015012,2]
[330789780,1719787841631,-505.63234199,0.00015012,2]
[330789781,1719787841641,-500.0,0.00015012,2]
[330789782,1719787841650,-500.0,0.00015012,2]
[330789783,1719787841659,-500.0,0.00015012,2]
[330789784,1719787841669,-500.0,0.00015012,2]
[330789785,1719787841678,-500.0,0.00015012,2]
[330789786,1719787841687,-500.0,0.00015012,2]
[330789787,1719787841696,-500.0,0.00015012,2]
[330789788,1719787841705,-500.0,0.00015012,2]
[330789789,1719787841715,-500.0,0.00015012,2]
[330789790,1719787841729,-500.0,0.00015012,2]
[330789791,1719787841738,-500.0,0.00015012,2]
[330789792,1719787841747,-500.0,0.00015012,2]
[330789793,1719787841760,-500.0,0.00015012,2]
[330789794,1719787841769,-500.0,0.00015012,2]
[330789795,1719787841778,-504.04806494,0.00015012,2]
[330789796,1719787841787,-500.0,0.00015012,2]
[330789797,1719787841796,-229.28273307,0.00015012,2]
[330789798,1719787841806,-507.93984838,0.00015012,2]
[330789799,1719787841815,-500.0,0.00015012,2]
[330789800,1719787841825,-608.36867961,0.00015012,2]
[330789801,1719787841834,-500.0,0.00015012,2]
[330789802,1719787841844,-500.0,0.00015012,2]
[330789803,1719787841853,-500.0,0.00015012,2]
[330789804,1719787841862,-500.0,0.00015012,2]
[330789805,1719787841872,-877.58,0.00015012,2]
[330789806,1719787841880,-500.0,0.00015012,2]
[330789807,1719787841890,-498.87369042,0.00015012,2]
[330789808,1719787841899,-500.0,0.00015012,2]
[330789809,1719787841908,-500.0,0.00015012,2]
[330789810,1719787841917,-500.0,0.00015012,2]
[330789811,1719787841926,-500.0,0.00015012,2]
[330789812,1719787841935,-500.0,0.00015012,2]
[330789813,1719787841945,-993.48,0.00015012,2]
[330789814,1719787841954,-183.75187817,0.00015012,2]
[330789815,1719787841963,-502.1796203,0.00015012,2]
[330789816,1719787841976,-951.37,0.00015012,2]
[330789817,1719787841985,-500.0,0.00015012,2]
[330789818,1719787841995,-500.0,0.00015012,2]
[330789819,1719787842005,-500.0,0.00015012,2]
[330789820,1719787842014,-500.0,0.00015012,2]
[330789821,1719787842024,-500.0,0.00015012,2]
[330789822,1719787842034,-500.0,0.00015012,2]
[330789823,1719787842043,-500.0,0.00015012,2]
[330789824,1719787842056,-500.0,0.00015012,2]
[330789825,1719787842066,-634.62,0.00015012,2]
[330789826,1719787842076,-548.94,0.00015012,2]
[330789827,1719787842085,-500.0,0.00015012,2]
[330789828,1719787842094,-125.56574705,0.00015012,2]
[330789829,1719787842312,500.0,0.0001501,2]
[330789864,1719787843505,-509.63,0.00015011,2]
[330789866,1719787843514,-374.43425295,0.00015012,2]
[330789868,1719787843524,-500.0,0.00015012,2]
[330789870,1719787843533,-500.0,0.00015012,2]
[330789872,1719787843542,-134.41966624,0.00015012,2]
[330789974,1719787844508,2248.34,0.0001501,2]
[330789992,1719787845463,501.74309777,0.0001501,2]
[330789993,1719787845515,9847.27,0.0001501,2]
[330790005,1719787846441,500.0,0.0001501,2]
[330790014,1719787848285,-319.79356436,0.00015012,2]
[330790015,1719787848295,-500.0,0.00015012,2]
[330790016,1719787848304,-500.0,0.00015012,2]
[330790017,1719787848313,-741.45,0.00015012,2]
[330790018,1719787848323,-500.0,0.00015012,2]
[330790019,1719787848332,-500.0,0.00015012,2]
[330790020,1719787848342,-500.0,0.00015012,2]
[330790021,1719787848352,-186.10378268,0.00015012,2]
[330790022,1719787848361,-583.51,0.00015012,2]
[330790023,1719787848370,-500.0,0.00015012,2]
[330790024,1719787848379,-500.0,0.00015012,2]
[330790025,1719787848389,-905.41,0.00015012,2]
[330790026,1719787848398,-500.0,0.00015012,2]
[330790027,1719787848407,-66.40218166,0.00015012,2]
[330790028,1719787851942,500.0,0.0001501,2]
[330790029,1719787856584,507.82319642,0.0001501,2]
[330790030,1719787858949,500.0,0.0001501,2]
[330790031,1719787860961,501.89316035,0.0001501,2]
[330790032,1719787861361,2607.53,0.0001501,2]
[330790033,1719787863848,500.0,0.0001501,2]
[330790034,1719787867037,2826.6457878,0.00014188,2]
[330790035,1719787867519,2337.03,0.0001501,2]
[330790036,1719787867640,500.0,0.0001501,2]
[330790037,1719787870006,500.0,0.0001501,2]
[330790038,1719787874160,500.0,0.0001501,2]
[330790039,1719787875621,500.0,0.0001501,2]
[330790040,1719787876051,500.0,0.0001501,2]
[330790041,1719787877837,2556.76,0.0001501,2]
[330790042,1719787878289,1635.39,0.0001501,2]
[330790043,1719787884244,500.0,0.0001501,2]
[330790044,1719787886164,500.0,0.0001501,2]
[330790045,1719787886288,878.52,0.0001501,2]
[330790046,1719787887415,500.0,0.0001501,2]
[330790047,1719787889095,1263.22,0.0001501,2]
[330790048,1719787893055,5286.34479944,0.00014681,2]
[330790049,1719787893356,500.0,0.0001501,2]
[330790050,1719787894923,500.0,0.0001501,2]
[330790051,1719787897308,500.0,0.0001501,2]
[330790052,1719787901739,500.0,0.0001501,2]
[330790053,1719787904494,500.0,0.0001501,2]
[330790054,1719787909827,500.0,0.0001501,2]
[330790055,1719787910645,500.0,0.0001501,2]
[330790056,1719787912801,500.0,0.0001501,2]
[330790057,1719787913080,9436.97,0.0001501,2]
[330790058,1719787913504,500.0,0.0001501,2]
[330790059,1719787916359,1167.95,0.0001501,2]
[330790060,1719787916842,757.58,0.0001501,2]
[330790061,1719787920945,300.0,0.0001501,2]
[330790062,1719787923737,300.0,0.0001501,2]
[330790063,1719787928902,500.0,0.0001501,2]
[330790064,1719787936369,4739.01,0.0001501,2]
[330790065,1719787936460,500.0,0.0001501,2]
[330790066,1719787943352,500.0,0.0001501,2]
[330790067,1719787944286,513.99284798,0.0001501,2]
[330790068,1719787946602,501.50568853,0.0001501,2]
[330790069,1719787948380,501.51090296,0.0001501,2]
[330790070,1719787953642,500.0,0.0001501,2]
[330790071,1719787954145,500.0,0.0001501,2]
[330790072,1719787955115,500.0,0.0001501,2]
[330790073,1719787956099,1246.26,0.0001501,2]
[330790074,1719787958246,4533.9,0.0001501,2]
[330790075,1719787961459,500.0,0.0001501,2]
[330790076,1719787964001,500.0,0.0001501,2]
[330790077,1719787967791,500.0,0.0001501,2]
[330790078,1719787968116,1717.49,0.0001501,2]
[330790079,1719787970378,503.14899087,0.0001501,2]
[330790080,1719787971786,500.0,0.0001501,2]
[330790081,1719787972426,564.07655874,0.0001501,2]
[330790082,1719787974604,500.0,0.0001501,2]
[330790083,1719787977442,500.0,0.0001501,2]
[330790085,1719787980427,500.0,0.0001501,2]
[330790086,1719787980996,300.0,0.0001501,2]
[330790087,1719787986644,511.02,0.0001501,2]
[330790088,1719787988678,1554.42,0.0001501,2]
[330790089,1719787989345,500.0,0.0001501,2]
[330790091,1719787993856,500.0,0.0001501,2]
[330790092,1719788002664,500.0,0.0001501,2]
[330790093,1719788007232,500.0,0.0001501,2]
[330790095,1719788013047,500.0,0.0001501,2]
[330790096,1719788013590,500.0,0.0001501,2]
[330790097,1719788014692,1041.56,0.0001501,2]
[330790099,1719788018796,500.0,0.0001501,2]
[330790100,1719788019185,501.6928506,0.0001501,2]
[330790101,1719788019236,500.0,0.0001501,2]
[330790102,1719788027260,551.47,0.0001501,2]
[330790103,1719788028805,4344.98,0.0001501,2]
[330790104,1719788029052,500.0,0.0001501,2]
[330790105,1719788031088,500.0,0.0001501,2]
[330790107,1719788034442,1399.43,0.0001501,2]
[330790108,1719788034984,500.0,0.0001501,2]
[330790109,1719788038382,503.31674977,0.0001501,2]
[330790110,1719788041057,300.0,0.0001501,2]
[330790111,1719788042568,1014.31,0.0001501,2]
[330790112,1719788044536,1616.91,0.0001501,2]
[330790113,1719788054329,7134.24,0.0001501,2]
[330790114,1719788055746,1489.66,0.0001501,2]
[330790115,1719788055985,500.0,0.0001501,2]
[330790119,1719788064730,2239.66,0.0001501,2]
[330790120,1719788072989,500.0,0.0001501,2]
[330790121,1719788075518,2154.66,0.0001501,2]
[330790122,1719788078111,500.0,0.0001501,2]
[330790123,1719788081160,9000.0,0.00025,120]
[330790124,1719788082178,500.0,0.0001501,2]
[330790125,1719788083060,500.0,0.0001501,2]
[330790126,1719788084400,500.0,0.0001501,2]
[330790127,1719788094613,500.0,0.0001501,2]
[330790129,1719788098666,556.94,0.0001501,2]
[330790130,1719788100997,300.0,0.0001501,2]
[330790131,1719788101720,500.0,0.0001501,2]
[330790132,1719788102634,528.49,0.0001501,2]
[330790133,1719788104726,6555.14,0.0001501,2]
[330790134,1719788105065,500.0,0.0001501,2]
[330790136,1719788108090,500.0,0.0001501,2]
[330790137,1719788114360,500.0,0.0001501,2]
[330790138,1719788115880,726.02,0.0001501,2]
[330790139,1719788121206,510.95,0.0001501,2]
[330790140,1719788125541,500.0,0.0001501,2]
[330790141,1719788130253,500.0,0.0001501,2]
[330790142,1719788131303,500.0,0.0001501,2]
[330790143,1719788135430,500.0,0.0001501,2]
[330790144,1719788136513,626.72,0.0001501,2]
[330790145,1719788139199,500.0,0.0001501,2]
[330790146,1719788140832,2146.34,0.0001501,2]
[330790147,1719788144068,493.31327871,0.0001501,2]
[330790148,1719788151205,500.0,0.0001501,2]
[330790149,1719788152202,503.19179824,0.0001501,2]
[330790150,1719788153926,500.0,0.0001501,2]
[330790151,1719788154743,478.98044168,0.0001501,2]
[330790152,1719788155051,500.0,0.0001501,2]
[330790153,1719788161038,300.0,0.0001501,2]
[330790154,1719788162651,575.88,0.0001501,2]
[330790155,1719788165220,573.8,0.0001501,2]
[330790156,1719788170389,500.0,0.0001501,2]
[330790157,1719788172291,510.35,0.0001501,2]
[330790158,1719788176460,500.0,0.0001501,2]
[330790159,1719788181322,538.13452789,0.0001501,2]
[330790160,1719788185816,230.64,0.0001501,2]
[330790161,1719788190098,695.76,0.0001501,2]
[330790162,1719788190882,1294.74,0.0001501,2]
[330790163,1719788198945,500.0,0.0001501,2]
[330790164,1719788206143,1017.87,0.0001501,2]
[330790165,1719788207394,500.0,0.0001501,2]
[330790166,1719788207445,500.0,0.0001501,2]
[330790167,1719788213318,500.0,0.0001501,2]
[330790168,1719788213372,500.0,0.0001501,2]
[330790169,1719788215481,500.0,0.0001501,2]
[330790170,1719788218403,500.0,0.0001501,2]
[330790171,1719788220192,500.0,0.0001501,2]
[330790172,1719788221128,300.0,0.0001501,2]
[330790173,1719788221712,500.0,0.0001501,2]
[330790174,1719788222903,500.0,0.0001501,2]
[330790175,1719788229304,609.44,0.0001501,2]
[330790176,1719788231869,725.93,0.0001501,2]
[330790177,1719788234670,500.0,0.0001501,2]
[330790178,1719788246164,539.32,0.0001501,2]
[330790179,1719788247489,500.0,0.0001501,2]
[330790180,1719788249069,732.78,0.0001501,2]
[330790181,1719788262872,889.6,0.0001501,2]
[330790182,1719788264691,500.0,0.0001501,2]
[330790183,1719788267296,500.0,0.0001501,2]
[330790184,1719788273233,625.08,0.0001501,2]
[330790185,1719788276516,500.0,0.0001501,2]
[330790186,1719788277948,500.0,0.0001501,2]
[330790187,1719788280928,300.0,0.0001501,2]
[330790188,1719788284701,1114.26,0.0001501,2]
[330790189,1719788285385,500.0,0.0001501,2]
[330790190,1719788288179,6282.01,0.0001501,2]
[330790191,1719788288613,500.0,0.0001501,2]
[330790193,1719788291149,500.0,0.0001501,2]
[330790194,1719788294413,619.45,0.0001501,2]
[330790195,1719788298120,560.91723315,0.0001501,2]
[330790196,1719788312050,500.0,0.0001501,2]
[330790197,1719788312542,500.0,0.0001501,2]
[330790198,1719788321686,598.99,0.0001501,2]
[330790199,1719788322039,163.37659732,0.0001501,2]
[330790200,1719788329919,500.0,0.0001501,2]
[330790201,1719788333624,500.0,0.0001501,2]
[330790202,1719788340976,1162.65,0.0001501,2]
[330790203,1719788341283,300.0,0.0001501,2]
[330790204,1719788345370,551.89,0.0001501,2]
[330790205,1719788349958,6020.26,0.0001501,2]
[330790206,1719788374566,1240.8,0.0001501,2]
[330790207,1719788384149,5286.34479944,0.00014646,2]
[330790208,1719788390370,365.05135653,0.0001501,2]
[330790209,1719788392108,528.89,0.0001501,2]
[330790210,1719788392414,500.0,0.0001501,2]
[330790211,1719788396215,538.19,0.0001501,2]
[330790212,1719788397946,500.0,0.0001501,2]
[330790213,1719788401008,300.0,0.0001501,2]
[330790214,1719788407326,616.06,0.0001501,2]
[330790215,1719788410003,1309.7,0.0001501,2]
[330790216,1719788411804,500.0,0.0001501,2]
[330790217,1719788413719,1189.1,0.0001501,2]
[330790218,1719788421581,500.0,0.0001501,2]
[330790219,1719788421986,702.24,0.0001501,2]
[330790220,1719788431540,452.19498185,0.0001501,2]
[330790221,1719788431936,500.0,0.0001501,2]
[330790222,1719788445611,500.0,0.0001501,2]
[330790223,1719788445943,500.0,0.0001501,2]
[330790224,1719788448672,500.0,0.0001501,2]
[330790225,1719788453789,911.73,0.0001501,2]
[330790226,1719788453848,1268.19,0.0001501,2]
[330790227,1719788455946,500.0,0.0001501,2]
[330790228,1719788456297,1028.18,0.0001501,2]
[330790229,1719788458445,500.0,0.0001501,2]
[330790230,1719788459833,342.7910218,0.0001501,2]
[330790231,1719788460970,300.0,0.0001501,2]
[330790232,1719788469730,672.98,0.0001501,2]
[330790233,1719788470408,500.0,0.0001501,2]
[330790234,1719788474400,526.06,0.0001501,2]
[330790235,1719788475533,500.0,0.0001501,2]
[330790236,1719788477063,500.0,0.0001501,2]
[330790237,1719788480705,1132.86,0.0001501,2]
[330790238,1719788484942,500.0,0.0001501,2]
[330790239,1719788486904,9974.66,0.0001501,2]
[330790240,1719788489722,500.0,0.0001501,2]
[330790241,1719788490391,552.34,0.0001501,2]
[330790242,1719788491399,151.71,0.0001501,2]
[330790243,1719788497330,574.03,0.0001501,2]
[330790244,1719788497767,1415.3,0.0001501,2]
[330790245,1719788499686,500.0,0.0001501,2]
[330790246,1719788499732,1567.25,0.0001501,2]
[330790247,1719788505120,500.0,0.0001501,2]
[330790248,1719788509069,2731.4,0.0001501,2]
[330790249,1719788510113,433.59781834,0.0001501,2]
[330790250,1719788515845,500.0,0.0001501,2]
[330790251,1719788521226,300.0,0.0001501,2]
[330790252,1719788521485,500.0,0.0001501,2]
[330790253,1719788524551,500.0,0.0001501,2]
[330790254,1719788524642,500.0,0.0001501,2]
[330790255,1719788530968,500.0,0.0001501,2]
[330790256,1719788531356,500.0,0.0001501,2]
[330790257,1719788534384,500.0,0.0001501,2]
[330790258,1719788534683,500.0,0.0001501,2]
[330790259,1719788534740,500.0,0.0001501,2]
[330790260,1719788538560,500.0,0.0001501,2]
[330790262,1719788544325,500.0,0.0001501,2]
[330790263,1719788544375,774.43,0.0001501,2]
[330790264,1719788546312,550.11,0.0001501,2]
[330790266,1719788555430,500.0,0.0001501,2]
[330790267,1719788556460,500.0,0.0001501,2]
[330790268,1719788562165,500.0,0.0001501,2]
[330790269,1719788566683,500.0,0.0001501,2]
[330790270,1719788567314,698.24,0.0001501,2]
[330790271,1719788567845,500.0,0.0001501,2]
[330790272,1719788570420,500.0,0.0001501,2]
[330790274,1719788574630,1194.33,0.0001501,2]
[330790275,1719788575725,500.0,0.0001501,2]
[330790276,1719788575897,505.10966939,0.0001501,2]
[330790277,1719788577377,500.0,0.0001501,2]
[330790278,1719788581470,221.0,0.0001501,2]
[330790279,1719788585445,1645.93,0.0001501,2]
[330790280,1719788586186,500.0,0.0001501,2]
[330790281,1719788590163,500.0,0.0001501,2]
[330790282,1719788590405,841.01,0.0001501,2]
[330790283,1719788591907,2498.88,0.0001501,2]
[330790286,1719788598797,502.45667512,0.0001501,2]
[330790287,1719788599117,500.0,0.0001501,2]
[330790288,1719788604665,9043.76,0.0001501,2]
[330790289,1719788606779,500.0,0.0001501,2]
[330790290,1719788609381,2450.22,0.0001501,2]
[330790292,1719788616157,647.25225918,0.0001501,2]
[330790293,1719788617333,500.0,0.0001501,2]
[330790294,1719788617513,500.0,0.0001501,2]
[330790295,1719788619591,500.0,0.0001501,2]
[330790296,1719788620401,526.78,0.0001501,2]
[330790297,1719788621219,1210.59,0.0001501,2]
[330790299,1719788631944,500.0,0.0001501,2]
[330790300,1719788632845,998.16,0.0001501,2]
[330790301,1719788634354,500.0,0.0001501,2]
[330790302,1719788634841,500.0,0.0001501,2]
[330790303,1719788640852,952.09,0.0001501,2]
[330790304,1719788642118,500.0,0.0001501,2]
[330790305,1719788645608,500.0,0.0001501,2]
[330790306,1719788645912,500.0,0.0001501,2]
[330790307,1719788645970,873.74,0.0001501,2]
[330790308,1719788647318,529.33,0.0001501,2]
[330790309,1719788648495,1119.28,0.0001501,2]
[330790310,1719788654508,500.0,0.0001501,2]
[330790311,1719788655006,1255.13,0.0001501,2]
[330790312,1719788662090,972.05,0.0001501,2]
[330790313,1719788666183,556.34,0.0001501,2]
[330790314,1719788668073,4541.55,0.0001501,2]
[330790315,1719788679980,500.0,0.0001501,2]
[330790316,1719788681100,500.0,0.0001501,2]
[330790317,1719788683135,500.0,0.0001501,2]
[330790318,1719788685097,500.0,0.0001501,2]
[330790319,1719788687190,500.0,0.0001501,2]
[330790320,1719788687549,500.0,0.0001501,2]
[330790321,1719788694293,500.0,0.0001501,2]
[330790322,1719788694415,500.0,0.0001501,2]
[330790323,1719788695730,1215.35,0.0001501,2]
[330790324,1719788696951,500.0,0.0001501,2]
[330790325,1719788701694,608.18,0.0001501,2]
[330790326,1719788704031,837.34,0.0001501,2]
[330790327,1719788707528,500.0,0.0001501,2]
[330790328,1719788708705,500.0,0.0001501,2]
[330790329,1719788714328,500.0,0.0001501,2]
[330790330,1719788714376,533.73,0.0001501,2]
[330790331,1719788715956,507.27,0.0001501,2]
[330790332,1719788717036,500.0,0.0001501,2]
[330790333,1719788718423,507.83332134,0.0001501,2]
[330790334,1719788719110,500.0,0.0001501,2]
[330790336,1719788723245,500.0,0.0001501,2]
[330790337,1719788726917,4163.94,0.0001501,2]
[330790338,1719788728051,9559.05,0.0001501,2]
[330790339,1719788728490,500.0,0.0001501,2]
[330790340,1719788728551,500.0,0.0001501,2]
[330790341,1719788732292,502.1526192,0.0001501,2]
[330790342,1719788734543,500.0,0.0001501,2]
[330790343,1719788735914,500.0,0.0001501,2]
[330790344,1719788739025,500.0,0.0001501,2]
[330790345,1719788739562,500.0,0.0001501,2]
[330790347,1719788740160,1356.33,0.0001501,2]
[330790348,1719788741118,500.0,0.0001501,2]
[330790349,1719788742754,500.0,0.0001501,2]
[330790350,1719788745182,503.12328821,0.0001501,2]
[330790352,1719788748547,500.0,0.0001501,2]
[330790353,1719788749933,502.23915687,0.0001501,2]
[330790354,1719788750134,500.0,0.0001501,2]
[330790355,1719788751863,2617.59,0.0001501,2]
[330790356,1719788752228,559.2,0.0001501,2]
[330790357,1719788752330,500.0,0.0001501,2]
[330790358,1719788752604,500.0,0.0001501,2]
[330790359,1719788756705,500.0,0.0001501,2]
[330790360,1719788758253,500.0,0.0001501,2]
[330790361,1719788759805,1427.59,0.0001501,2]
[330790362,1719788762983,1341.12,0.0001501,2]
[330790363,1719788763194,867.68,0.0001501,2]
[330790364,1719788764382,500.0,0.0001501,2]
[330790365,1719788769611,500.0,0.0001501,2]
[330790367,1719788774027,500.0,0.0001501,2]
[330790368,1719788774141,1549.54,0.0001501,2]
[330790369,1719788774681,500.0,0.0001501,2]
[330790370,1719788775142,8666.94,0.0001501,2]
[330790371,1719788780475,293.77178794,0.0001501,2]
[330790372,1719788782750,6836.98,0.0001501,2]
[330790373,1719788783157,500.0,0.0001501,2]
[330790374,1719788783748,500.0,0.0001501,2]
[330790375,1719788787730,742.16,0.0001501,2]
[330790376,1719788790288,500.0,0.0001501,2]
[330790377,1719788790497,500.0,0.0001501,2]
[330790378,1719788791992,841.92,0.0001501,2]
[330790379,1719788797075,2084.99073344,0.00015,2]
[330790380,1719788800697,506.47,0.0001501,2]
[330790381,1719788802905,153.22923732,0.0001501,2]
[330790382,1719788802953,2064.89,0.0001501,2]
[330790383,1719788806844,500.0,0.0001501,2]
[330790384,1719788811059,500.0,0.0001501,2]
[330790385,1719788811112,500.0,0.0001501,2]
[330790386,1719788812447,159.35965211,0.00014999,2]
[330790387,1719788812715,975.46,0.0001501,2]
[330790388,1719788814283,500.0,0.0001501,2]
[330790389,1719788815790,500.0,0.0001501,2]
[330790390,1719788816713,500.0,0.0001501,2]
[330790391,1719788818555,500.0,0.0001501,2]
[330790392,1719788821890,500.0,0.0001501,2]
[330790393,1719788824900,500.0,0.0001501,2]
[330790394,1719788827958,500.0,0.0001501,2]
[330790395,1719788834310,500.0,0.0001501,2]
[330790396,1719788834992,8305.82,0.0001501,2]
[330790397,1719788836302,500.0,0.0001501,2]
[330790398,1719788836560,2394.76,0.0001501,2]
[330790399,1719788839536,584.05,0.0001501,2]
[330790400,1719788841811,2056.91,0.0001501,2]
[330790401,1719788842618,2056.91,0.0001501,2]
[330790402,1719788845589,500.0,0.0001501,2]
[330790403,1719788852260,1123.01,0.0001501,2]
[330790404,1719788852509,500.0,0.0001501,2]
[330790405,1719788855342,516.84,0.0001501,2]
[330790406,1719788858823,500.0,0.0001501,2]
[330790407,1719788863620,500.0,0.0001501,2]
[330790408,1719788865011,1160.15,0.0001501,2]
[330790409,1719788866922,500.0,0.0001501,2]
[330790410,1719788868951,500.0,0.0001501,2]
[330790411,1719788870081,500.0,0.0001501,2]
[330790412,1719788870498,2640.12438145,0.00014624,2]
[330790413,1719788870724,852.53,0.0001501,2]
[330790414,1719788872519,500.0,0.0001501,2]
[330790415,1719788872719,500.0,0.0001501,2]